fUST/lending_fUST_20250209
["ID","MTS","AMOUNT","RATE_DAILY","PERIOD"]
[352315833,1739040347935,-500.0,0.00010958,2]
[352315834,1739040347957,-500.0,0.00010958,2]
[352315835,1739040347979,-500.0,0.00010958,2]
[352315836,1739040348000,-500.0,0.00010958,2]
[352315837,1739040348023,-500.0,0.00010958,2]
[352315838,1739040348046,-500.0,0.00010958,2]
[352315839,1739040348068,-500.0,0.00010958,2]
[352315840,1739040348089,-500.0,0.00010958,2]
[352315841,1739040348112,-500.0,0.00010958,2]
[352315842,1739040348133,-500.0,0.00010958,2]
[352315843,1739040348158,-532.38,0.00010958,2]
[352315844,1739040348182,-500.0,0.00010958,2]
[352315845,1739040348205,-500.0,0.00010958,2]
[352315846,1739040348227,-515.68967748,0.00010958,2]
[352315847,1739040348250,-500.0,0.00010958,2]
[352315848,1739040348273,-521.3,0.00010958,2]
[352315849,1739040348295,-565.8916154,0.00010958,2]
[352315850,1739040348318,-505.14111392,0.00010958,2]
[352315851,1739040348340,-500.0,0.00010958,2]
[352315852,1739040348363,-515.30330719,0.00010958,2]
[352315853,1739040348387,-500.0,0.00010958,2]
[352315854,1739040348411,-939.8,0.00010958,2]
[352315855,1739040348434,-500.0,0.00010958,2]
[352315856,1739040348455,-201.2956501,0.00010958,2]
[352315857,1739040348482,-588.15,0.00010958,2]
[352315858,1739040348503,-500.0,0.00010958,2]
[352315859,1739040348525,-500.0,0.00010958,2]
[352315860,1739040348547,-500.0,0.00010958,2]
[352315861,1739040348570,-500.0,0.00010958,2]
[352315862,1739040348594,-516.41,0.00010958,2]
[352315863,1739040348615,-399.5103923,0.00010958,2]
[352315864,1739040348638,-500.0,0.00010958,2]
[352315865,1739040348660,-500.0,0.00010958,2]
[352315866,1739040348683,-500.0,0.00010958,2]
[352315867,1739040348705,-500.0,0.00010958,2]
[352315868,1739040348727,-500.0,0.00010958,2]
[352315869,1739040348749,-500.0,0.00010958,2]
[352315870,1739040348773,-500.0,0.00010958,2]
[352315871,1739040348800,-500.0,0.00010958,2]
[352315872,1739040348823,-500.0,0.00010958,2]
[352315873,1739040348845,-627.86,0.00010958,2]
[352315874,1739040348868,-503.71440355,0.00010958,2]
[352315875,1739040348893,-500.0,0.00010958,2]
[352315876,1739040348916,-500.0,0.00010958,2]
[352315877,1739040348939,-350.8500441,0.00010958,2]
[352315878,1739040348961,-500.0,0.00010958,2]
[352315879,1739040348984,-527.29,0.00010958,2]
[352315880,1739040349006,-500.0,0.00010958,2]
[352315881,1739040349028,-500.0,0.00010958,2]
[352315882,1739040349050,-500.0,0.00010958,2]
[352315883,1739040349071,-500.0,0.00010958,2]
[352315884,1739040349092,-460.3706053,0.00010958,2]
[352315885,1739040349113,-500.0,0.00010958,2]
[352315886,1739040349134,-635.30372059,0.00010958,2]
[352315887,1739040349157,-500.68577645,0.00010958,2]
[352315888,1739040349178,-500.0,0.00010958,2]
[352315889,1739040349198,-802.05,0.00010958,2]
[352315890,1739040349219,-500.0,0.00010958,2]
[352315891,1739040349241,-500.0,0.00010958,2]
[352315892,1739040349263,-500.0,0.00010958,2]
[352315893,1739040349285,-500.0,0.00010958,2]
[352315894,1739040349307,-500.0,0.00010958,2]
[352315895,1739040349328,-500.0,0.00010958,2]
[352315896,1739040349351,-500.0,0.00010958,2]
[352315897,1739040349372,-500.0,0.00010958,2]
[352315898,1739040349394,-500.0,0.00010958,2]
[352315899,1739040349415,-500.0,0.00010958,2]
[352315900,1739040349436,-500.0,0.00010958,2]
[352315901,1739040349458,-503.52044485,0.00010958,2]
[352315902,1739040349485,-636.85,0.00010958,2]
[352315903,1739040349507,-500.0,0.00010958,2]
[352315904,1739040349528,-500.0,0.00010958,2]
[352315905,1739040349551,-500.0,0.00010958,2]
[352315906,1739040349572,-598.95669132,0.00010958,2]
[352315907,1739040349594,-502.26084643,0.00010958,2]
[352315908,1739040349614,-580.48,0.00010958,2]
[352315909,1739040349636,-500.0,0.00010958,2]
[352315910,1739040349657,-500.0,0.00010958,2]
[352315911,1739040349679,-500.0,0.00010958,2]
[352315912,1739040349699,-696.62,0.00010958,2]
[352315913,1739040349892,-500.0,0.00010958,2]
[352315914,1739040349915,-500.0,0.00010958,2]
[352315915,1739040349937,-513.21978308,0.00010958,2]
[352315916,1739040349959,-500.0,0.00010958,2]
[352315917,1739040349981,-500.0,0.00010958,2]
[352315918,1739040350002,-426.22064647,0.00010958,2]
[352315919,1739040350025,-500.0,0.00010958,2]
[352315920,1739040350045,-500.0,0.00010958,2]
[352315921,1739040350066,-729.54,0.00010958,2]
[352315922,1739040350087,-500.0,0.00010958,2]
[352315923,1739040350108,-1210.84,0.00010958,2]
[352315924,1739040350130,-500.0,0.00010958,2]
[352315925,1739040350152,-500.0,0.00010958,2]
[352315926,1739040350174,-500.0,0.00010958,2]
[352315927,1739040350196,-1211.62,0.00010958,2]
[352315928,1739040350217,-500.0,0.00010958,2]
[352315929,1739040350238,-2480.98,0.00010958,2]
[352315930,1739040350260,-500.0,0.00010958,2]
[352315931,1739040350281,-500.0,0.00010958,2]
[352315932,1739040350303,-516.94,0.00010958,2]
[352315933,1739040350325,-1058.0,0.00010958,2]
[352315934,1739040350349,-10852.91,0.00010958,2]
[352315935,1739040350370,-654.99,0.00010958,2]
[352315936,1739040350392,-652.01,0.00010958,2]
[352315937,1739040350415,-724.95,0.00010958,2]
[352315938,1739040350437,-500.0,0.00010958,2]
[352315939,1739040350459,-1798.19,0.00010958,2]
[352315940,1739040350484,-500.0,0.00010958,2]
[352315941,1739040350506,-500.0,0.00010958,2]
[352315942,1739040350529,-4369.92,0.00010958,2]
[352315943,1739040350554,-852.69,0.00010958,2]
[352315944,1739040350576,-500.0,0.00010958,2]
[352315945,1739040350597,-500.0,0.00010958,2]
[352315946,1739040350617,-500.0,0.00010958,2]
[352315947,1739040350638,-500.0,0.00010958,2]
[352315948,1739040350660,-500.0,0.00010958,2]
[352315949,1739040350682,-500.0,0.00010958,2]
[352315950,1739040350703,-500.0,0.00010958,2]
[352315951,1739040350726,-500.0,0.00010958,2]
[352315952,1739040350749,-500.0,0.00010958,2]
[352315953,1739040350770,-500.0,0.00010958,2]
[352315954,1739040350792,-500.0,0.00010958,2]
[352315955,1739040350813,-500.0,0.00010958,2]
[352315956,1739040350834,-864.95,0.00010958,2]
[352315957,1739040350856,-841.27,0.00010958,2]
[352315958,1739040350877,-500.0,0.00010958,2]
[352315959,1739040350899,-500.0,0.00010958,2]
[352315960,1739040350920,-500.0,0.00010958,2]
[352315961,1739040350942,-500.0,0.00010958,2]
[352315962,1739040350963,-934.88,0.00010958,2]
[352315963,1739040350984,-501.19171411,0.00010958,2]
[352315964,1739040351005,-500.0,0.00010958,2]
[352315965,1739040351027,-625.05,0.00010958,2]
[352315966,1739040351049,-2613.69,0.00010958,2]
[352315967,1739040351070,-500.0,0.00010958,2]
[352315968,1739040351091,-920.25,0.00010958,2]
[352315969,1739040351112,-500.0,0.00010958,2]
[352315970,1739040351133,-1275.47,0.00010958,2]
[352315971,1739040351156,-1490.77,0.00010958,2]
[352315972,1739040351177,-29960.17,0.00010958,2]
[352315973,1739040351198,-1162.87,0.00010958,2]
[352315974,1739040351219,-1092.65,0.00010958,2]
[352315975,1739040351239,-500.0,0.00010958,2]
[352315976,1739040351259,-500.0,0.00010958,2]
[352315977,1739040351280,-500.0,0.00010958,2]
[352315978,1739040351300,-500.0,0.00010958,2]
[352315979,1739040351321,-1541.2,0.00010958,2]
[352315980,1739040351342,-500.0,0.00010958,2]
[352315981,1739040351364,-143.03780984,0.00010958,2]
[352315982,1739040391092,-300.0,0.00010957,2]
[352315983,1739040391113,-912.64219016,0.00010958,2]
[352315984,1739040391136,-500.0,0.00010958,2]
[352315985,1739040391157,-500.0,0.00010958,2]
[352315986,1739040391179,-534.0,0.00010958,2]
[352315987,1739040391199,-3858.31,0.00010958,2]
[352315988,1739040391221,-500.0,0.00010958,2]
[352315989,1739040391244,-7212.08079684,0.00010958,2]
[352315990,1739040429120,-1007.99,0.00010958,2]
[352315991,1739040429143,-1418.75,0.00010958,2]
[352315992,1739040429165,-500.0,0.00010958,2]
[352315993,1739040429186,-619.35,0.00010958,2]
[352315994,1739040429212,-1114.78,0.00010958,2]
[352315995,1739040429234,-500.0,0.00010958,2]
[352315996,1739040429258,-500.0,0.00010958,2]
[352315997,1739040429280,-500.0,0.00010958,2]
[352315998,1739040429302,-500.0,0.00010958,2]
[352315999,1739040429324,-500.0,0.00010958,2]
[352316000,1739040429346,-500.0,0.00010958,2]
[352316001,1739040429366,-500.0,0.00010958,2]
[352316002,1739040429388,-727.13,0.00010958,2]
[352316003,1739040429411,-500.0,0.00010958,2]
[352316004,1739040429432,-500.0,0.00010958,2]
[352316005,1739040429454,-500.0,0.00010958,2]
[352316006,1739040429477,-500.0,0.00010958,2]
[352316007,1739040429503,-964.51,0.00010958,2]
[352316008,1739040429525,-2676.97,0.00010958,2]
[352316009,1739040429756,-887.77,0.00010958,2]
[352316010,1739040429778,-500.0,0.00010958,2]
[352316011,1739040429799,-500.0,0.00010958,2]
[352316012,1739040429821,-585.35,0.00010958,2]
[352316013,1739040429841,-502.32744904,0.00010958,2]
[352316014,1739040429862,-1028.76,0.00010958,2]
[352316015,1739040429883,-500.0,0.00010958,2]
[352316016,1739040429904,-500.0,0.00010958,2]
[352316017,1739040429926,-502.01266345,0.00010958,2]
[352316018,1739040429948,-500.0,0.00010958,2]
[352316019,1739040429969,-500.0,0.00010958,2]
[352316020,1739040430001,-8.48710351,0.00010958,2]
[352316021,1739040450115,-400.0,0.00010685,2]
[352316022,1739040450138,-491.51289649,0.00010958,2]
[352316023,1739040450159,-500.0,0.00010958,2]
[352316024,1739040450181,-587.88,0.00010958,2]
[352316025,1739040450202,-500.0,0.00010958,2]
[352316026,1739040450224,-2219.78,0.00010958,2]
[352316027,1739040450247,-500.0,0.00010958,2]
[352316028,1739040450269,-2262.36,0.00010958,2]
[352316029,1739040450290,-500.0,0.00010958,2]
[352316030,1739040450312,-5953.36,0.00010958,2]
[352316031,1739040450333,-500.0,0.00010958,2]
[352316032,1739040450355,-500.0,0.00010958,2]
[352316033,1739040450377,-1201.84,0.00010958,2]
[352316034,1739040450398,-500.0,0.00010958,2]
[352316035,1739040450608,-500.0,0.00010958,2]
[352316036,1739040450632,-500.0,0.00010958,2]
[352316037,1739040450655,-1170.56,0.00010958,2]
[352316038,1739040450679,-500.0,0.00010958,2]
[352316039,1739040450700,-152.56661509,0.00010958,2]
[352316040,1739040450724,-2602.26,0.00010958,2]
[352316041,1739040450754,-1130.5,0.00010958,2]
[352316042,1739040450775,-500.0,0.00010958,2]
[352316043,1739040450798,-500.0,0.00010958,2]
[352316044,1739040450820,-500.0,0.00010958,2]
[352316045,1739040450843,-2377.61,0.00010958,2]
[352316046,1739040450865,-500.0,0.00010958,2]
[352316047,1739040450887,-500.0,0.00010958,2]
[352316048,1739040450910,-500.0,0.00010958,2]
[352316049,1739040450932,-500.0,0.00010958,2]
[352316050,1739040450954,-580.49,0.00010958,2]
[352316051,1739040450984,-406.30168519,0.00010958,2]
[352316052,1739040451007,-610.25984198,0.00010958,2]
[352316053,1739040451027,-500.0,0.00010958,2]
[352316054,1739040451048,-500.0,0.00010958,2]
[352316055,1739040451070,-500.0,0.00010958,2]
[352316056,1739040451092,-10400.71,0.00010958,2]
[352316057,1739040451113,-694.75,0.00010958,2]
[352316058,1739040451134,-500.0,0.00010958,2]
[352316059,1739040451155,-500.0,0.00010958,2]
[352316060,1739040451177,-543.49,0.00010958,2]
[352316061,1739040451198,-500.0,0.00010958,2]
[352316062,1739040451220,-1013.92,0.00010958,2]
[352316063,1739040451243,-500.0,0.00010958,2]
[352316064,1739040451264,-500.0,0.00010958,2]
[352316065,1739040451287,-624.84,0.00010958,2]
[352316066,1739040451308,-601.70176474,0.00010958,2]
[352316067,1739040451329,-500.0,0.00010958,2]
[352316068,1739040451351,-500.0,0.00010958,2]
[352316069,1739040451373,-500.0,0.00010958,2]
[352316070,1739040451394,-500.0,0.00010958,2]
[352316071,1739040451414,-500.0,0.00010958,2]
[352316072,1739040451435,-500.0,0.00010958,2]
[352316073,1739040451457,-1723.27,0.00010958,2]
[352316074,1739040451478,-500.0,0.00010958,2]
[352316075,1739040451505,-817.16,0.00010958,2]
[352316076,1739040451526,-984.03,0.00010958,2]
[352316077,1739040451549,-881.91,0.00010958,2]
[352316078,1739040451570,-500.0,0.00010958,2]
[352316079,1739040451595,-244.82,0.00010958,2]
[352316080,1739040451617,-4187.84,0.00010958,2]
[352316081,1739040451639,-500.0,0.00010958,2]
[352316082,1739040451659,-502.64196636,0.00010958,2]
[352316083,1739040451680,-503.70324532,0.00010958,2]
[352316084,1739040451701,-327.83614105,0.00010958,2]
[352316085,1739040451724,-500.0,0.00010958,2]
[352316086,1739040451751,-506.13852001,0.00010958,2]
[352316087,1739040451773,-500.0,0.00010958,2]
[352316088,1739040451796,-500.0,0.00010958,2]
[352316089,1739040451819,-500.0,0.00010958,2]
[352316090,1739040451843,-806.22,0.00010958,2]
[352316091,1739040451867,-612.71,0.00010958,2]
[352316092,1739040451889,-500.0,0.00010958,2]
[352316093,1739040451911,-500.0,0.00010958,2]
[352316094,1739040451934,-28711.83,0.00010958,2]
[352316095,1739040451957,-500.0,0.00010958,2]
[352316096,1739040451982,-500.0,0.00010958,2]
[352316097,1739040452006,-11184.0,0.00010958,2]
[352316098,1739040452028,-538.29,0.00010958,2]
[352316099,1739040452050,-273.10615024,0.00010958,2]
[352316100,1739040452072,-500.0,0.00010958,2]
[352316101,1739040452094,-500.0,0.00010958,2]
[352316102,1739040452116,-895.93,0.00010958,2]
[352316103,1739040452138,-500.0,0.00010958,2]
[352316104,1739040452159,-500.0,0.00010958,2]
[352316105,1739040452180,-500.0,0.00010958,2]
[352316106,1739040452201,-1476.98,0.00010958,2]
[352316107,1739040452225,-500.0,0.00010958,2]
[352316108,1739040452247,-500.0,0.00010958,2]
[352316109,1739040452268,-500.0,0.00010958,2]
[352316110,1739040452288,-273.91363963,0.00010958,2]
[352316111,1739040452309,-289.39246282,0.00010958,2]
[352316112,1739040452332,-2504.78,0.00010958,2]
[352316113,1739040452356,-500.0,0.00010958,2]
[352316114,1739040452377,-500.0,0.00010958,2]
[352316115,1739040452401,-1222.32,0.00010958,2]
[352316116,1739040452423,-500.0,0.00010958,2]
[352316117,1739040452445,-500.0,0.00010958,2]
[352316118,1739040452468,-798.56577575,0.00010958,2]
[352316122,1739040513791,296.0,0.00014,30]
[352316216,1739040632699,-158.346914,0.00010213,2]
[352316219,1739040632709,-300.0,0.00010957,2]
[352316221,1739040632718,-269.76422425,0.00010958,2]
[352316223,1739040632727,-264.69886175,0.00010958,2]
[352316226,1739040632747,-701.29113825,0.00010958,2]
[352316228,1739040632757,-503.22444644,0.00010958,2]
[352316230,1739040632766,-2741.48486714,0.00010958,2]
[352316234,1739040632795,-956.05513286,0.00010958,2]
[352316236,1739040632805,-500.0,0.00010958,2]
[352316238,1739040632814,-1428.65,0.00010958,2]
[352316240,1739040632823,-500.0,0.00010958,2]
[352316242,1739040632833,-504.08018422,0.00010958,2]
[352316244,1739040632842,-500.0,0.00010958,2]
[352316246,1739040632851,-500.0,0.00010958,2]
[352316248,1739040632860,-501.27115331,0.00010958,2]
[352316251,1739040632871,-500.0,0.00010958,2]
[352316253,1739040632880,-500.0,0.00010958,2]
[352316255,1739040632890,-1114.42,0.00010958,2]
[352316256,1739040632899,-500.0,0.00010958,2]
[352316259,1739040632908,-658.58,0.00010958,2]
[352316261,1739040632920,-500.0,0.00010958,2]
[352316263,1739040632929,-500.0,0.00010958,2]
[352316265,1739040632938,-502.72180017,0.00010958,2]
[352316267,1739040632948,-500.0,0.00010958,2]
[352316269,1739040632958,-500.0,0.00010958,2]
[352316271,1739040632968,-500.0,0.00010958,2]
[352316273,1739040632977,-500.0,0.00010958,2]
[352316275,1739040632987,-529.78,0.00010958,2]
[352316277,1739040632996,-500.0,0.00010958,2]
[352316279,1739040633006,-500.0,0.00010958,2]
[352316281,1739040633015,-500.0,0.00010958,2]
[352316283,1739040633025,-500.0,0.00010958,2]
[352316285,1739040633034,-500.0,0.00010958,2]
[352316287,1739040633044,-1011.69,0.00010958,2]
[352316289,1739040633054,-580.39701685,0.00010958,2]
[352316291,1739040633064,-501.14641749,0.00010958,2]
[352316293,1739040633074,-597.31284598,0.00010958,2]
[352316295,1739040633084,-500.0,0.00010958,2]
[352316297,1739040633093,-512.58249722,0.00010958,2]
[352316315,1739040633265,-500.0,0.00010958,2]
[352316317,1739040633275,-500.0,0.00010958,2]
[352316319,1739040633285,-500.0,0.00010958,2]
[352316321,1739040633295,-500.0,0.00010958,2]
[352316323,1739040633304,-1359.63,0.00010958,2]
[352316325,1739040633314,-500.0,0.00010958,2]
[352316327,1739040633324,-579.76012847,0.00010958,2]
[352316329,1739040633334,-500.0,0.00010958,2]
[352316331,1739040633344,-500.0,0.00010958,2]
[352316333,1739040633354,-500.0,0.00010958,2]
[352316335,1739040633363,-500.0,0.00010958,2]
[352316337,1739040633373,-500.0,0.00010958,2]
[352316339,1739040633383,-500.0,0.00010958,2]
[352316341,1739040633392,-500.0,0.00010958,2]
[352316343,1739040633402,-500.0,0.00010958,2]
[352316345,1739040633411,-500.0,0.00010958,2]
[352316347,1739040633420,-500.0,0.00010958,2]
[352316349,1739040633429,-500.0,0.00010958,2]
[352316351,1739040633438,-2565.42,0.00010958,2]
[352316353,1739040633448,-2127.29,0.00010958,2]
[352316355,1739040633457,-768.63,0.00010958,2]
[352316357,1739040633466,-560.96,0.00010958,2]
[352316359,1739040633476,-500.0,0.00010958,2]
[352316361,1739040633485,-1151.76,0.00010958,2]
[352316363,1739040633495,-985.89,0.00010958,2]
[352316365,1739040633504,-181.42952332,0.00010958,2]
[352316367,1739040633513,-563.38,0.00010958,2]
[352316369,1739040633523,-500.0,0.00010958,2]
[352316371,1739040633533,-1083.4,0.00010958,2]
[352316373,1739040633544,-9967.34,0.00010958,2]
[352316374,1739040633555,-500.0,0.00010958,2]
[352316376,1739040633565,-500.0,0.00010958,2]
[352316377,1739040633575,-500.0,0.00010958,2]
[352316379,1739040633586,-2168.09,0.00010958,2]
[352316381,1739040633597,-500.0,0.00010958,2]
[352316383,1739040633607,-500.0,0.00010958,2]
[352316385,1739040633617,-598.81,0.00010958,2]
[352316387,1739040633629,-500.0,0.00010958,2]
[352316389,1739040633642,-500.0,0.00010958,2]
[352316391,1739040633652,-783.11,0.00010958,2]
[352316393,1739040633662,-5705.3,0.00010958,2]
[352316395,1739040633672,-500.0,0.00010958,2]
[352316397,1739040633683,-500.0,0.00010958,2]
[352316399,1739040633692,-971.67,0.00010958,2]
[352316401,1739040633702,-500.0,0.00010958,2]
[352316403,1739040633712,-500.0,0.00010958,2]
[352316405,1739040633721,-2493.83,0.00010958,2]
[352316407,1739040633731,-555.86,0.00010958,2]
[352316409,1739040633740,-499.18336436,0.00010958,2]
[352316411,1739040633750,-500.0,0.00010958,2]
[352316413,1739040633761,-926.69,0.00010958,2]
[352316415,1739040633770,-1651.46,0.00010958,2]
[352316417,1739040633782,-610.32,0.00010958,2]
[352316419,1739040633791,-500.0,0.00010958,2]
[352316421,1739040633801,-4013.35,0.00010958,2]
[352316423,1739040633811,-500.0,0.00010958,2]
[352316425,1739040633821,-2278.54,0.00010958,2]
[352316427,1739040633830,-556.29,0.00010958,2]
[352316429,1739040633840,-151.0,0.00011,2]
[352316431,1739040633850,-866.96490794,0.00011016,2]
[352316433,1739040633861,-500.0,0.00011095,2]
[352316435,1739040633871,-256.3639301,0.00011095,2]
[352316437,1739040633880,-500.0,0.00011095,2]
[352316439,1739040633890,-500.0,0.00011095,2]
[352316441,1739040633901,-486.32161405,0.00011095,2]
[352316443,1739040633911,-335.26905229,0.00011095,2]
[352316445,1739040633920,-696.62,0.00011095,2]
[352316447,1739040633930,-500.0,0.00011095,2]
[352316449,1739040633940,-500.0,0.00011095,2]
[352316451,1739040633949,-729.54,0.00011095,2]
[352316453,1739040633959,-1210.84,0.00011095,2]
[352316455,1739040633968,-1211.62,0.00011095,2]
[352316457,1739040633978,-500.0,0.00011095,2]
[352316459,1739040633988,-516.94,0.00011095,2]
[352316461,1739040633998,-654.99,0.00011095,2]
[352316463,1739040634008,-500.0,0.00011095,2]
[352316465,1739040634017,-500.0,0.00011095,2]
[352316467,1739040634027,-8.15263214,0.00011095,2]
[352316470,1739040634042,-491.84736786,0.00011095,2]
[352316472,1739040634051,-500.0,0.00011095,2]
[352316474,1739040634061,-500.0,0.00011095,2]
[352316476,1739040634071,-864.95,0.00011095,2]
[352316478,1739040634081,-500.0,0.00011095,2]
[352316480,1739040634091,-625.05,0.00011095,2]
[352316482,1739040634100,-267.81084953,0.00011095,2]
[352316484,1739040634110,-1092.65,0.00011095,2]
[352316486,1739040634120,-110.06403285,0.00011095,2]
[352316840,1739040638111,-423.93596715,0.00011095,2]
[352316842,1739040638121,-500.0,0.00011095,2]
[352316844,1739040638131,-500.0,0.00011095,2]
[352316846,1739040638141,-500.0,0.00011095,2]
[352316848,1739040638152,-727.13,0.00011095,2]
[352316850,1739040638162,-500.0,0.00011095,2]
[352316852,1739040638171,-964.51,0.00011095,2]
[352316854,1739040638180,-887.77,0.00011095,2]
[352316856,1739040638190,-500.0,0.00011095,2]
[352316858,1739040638200,-500.0,0.00011095,2]
[352316860,1739040638210,-500.0,0.00011095,2]
[352316862,1739040638219,-500.0,0.00011095,2]
[352316864,1739040638228,-500.0,0.00011095,2]
[352316866,1739040638237,-500.0,0.00011095,2]
[352316868,1739040638247,-500.0,0.00011095,2]
[352316870,1739040638257,-499.905653,0.00011095,2]
[352316872,1739040638266,-500.0,0.00011095,2]
[352316874,1739040638276,-580.49,0.00011095,2]
[352316876,1739040638285,-266.57412025,0.00011095,2]
[352316878,1739040638295,-694.75,0.00011095,2]
[352316880,1739040638304,-543.49,0.00011095,2]
[352316882,1739040638314,-500.0,0.00011095,2]
[352316884,1739040638324,-500.0,0.00011095,2]
[352316886,1739040638333,-500.0,0.00011095,2]
[352316888,1739040638342,-984.03,0.00011095,2]
[352316890,1739040638351,-881.91,0.00011095,2]
[352316892,1739040638361,-806.22,0.00011095,2]
[352316894,1739040638370,-612.71,0.00011095,2]
[352316896,1739040638380,-27870.39093966,0.00011095,2]
[352316898,1739040638392,-500.0,0.00011095,2]
[352316901,1739040638410,-341.43906034,0.00011095,2]
[352316903,1739040638420,-11184.0,0.00011095,2]
[352316905,1739040638429,-538.29,0.00011095,2]
[352316907,1739040638438,-895.93,0.00011095,2]
[352316909,1739040638447,-500.0,0.00011095,2]
[352316911,1739040638457,-500.0,0.00011095,2]
[352316913,1739040638466,-1476.98,0.00011095,2]
[352316915,1739040638475,-2504.78,0.00011095,2]
[352316917,1739040638484,-715.60015688,0.00011095,2]
[352316919,1739040638500,-506.71984312,0.00011095,2]
[352316922,1739040638510,-1068.33,0.00011095,2]
[352316924,1739040638520,-965.99,0.00011095,2]
[352316926,1739040638530,-3697.54,0.00011095,2]
[352316928,1739040638540,-1428.65,0.00011095,2]
[352316930,1739040638552,-500.0,0.00011095,2]
[352316932,1739040638562,-500.0,0.00011095,2]
[352316934,1739040638571,-1114.42,0.00011095,2]
[352316936,1739040638582,-658.58,0.00011095,2]
[352316938,1739040638592,-500.0,0.00011095,2]
[352316939,1739040638601,-500.0,0.00011095,2]
[352316942,1739040638611,-529.78,0.00011095,2]
[352316944,1739040638621,-500.0,0.00011095,2]
[352316946,1739040638630,-1011.69,0.00011095,2]
[352316948,1739040638639,-500.0,0.00011095,2]
[352316950,1739040638649,-1359.63,0.00011095,2]
[352316951,1739040638659,-500.0,0.00011095,2]
[352316954,1739040638668,-500.0,0.00011095,2]
[352316955,1739040638677,-500.0,0.00011095,2]
[352316957,1739040638687,-500.0,0.00011095,2]
[352316960,1739040638697,-500.0,0.00011095,2]
[352316961,1739040638707,-2565.42,0.00011095,2]
[352316963,1739040638716,-2127.29,0.00011095,2]
[352316965,1739040638725,-768.63,0.00011095,2]
[352316967,1739040638734,-560.96,0.00011095,2]
[352316969,1739040638744,-500.0,0.00011095,2]
[352316971,1739040638753,-1151.76,0.00011095,2]
[352316973,1739040638763,-985.89,0.00011095,2]
[352316975,1739040638772,-563.38,0.00011095,2]
[352316977,1739040638782,-500.0,0.00011095,2]
[352316980,1739040638791,-1083.4,0.00011095,2]
[352316982,1739040638800,-9967.34,0.00011095,2]
[352316984,1739040638810,-500.0,0.00011095,2]
[352316986,1739040638819,-500.0,0.00011095,2]
[352316988,1739040638828,-500.0,0.00011095,2]
[352316990,1739040638838,-2168.09,0.00011095,2]
[352316991,1739040638847,-500.0,0.00011095,2]
[352316994,1739040638856,-598.81,0.00011095,2]
[352316996,1739040638866,-500.0,0.00011095,2]
[352316998,1739040638875,-783.11,0.00011095,2]
[352317000,1739040638885,-5705.3,0.00011095,2]
[352317002,1739040638895,-240.08,0.00011095,2]
[352317004,1739040638906,-500.0,0.00011095,2]
[352317006,1739040638916,-971.67,0.00011095,2]
[352317008,1739040638925,-2493.83,0.00011095,2]
[352317010,1739040638935,-555.86,0.00011095,2]
[352317012,1739040638945,-481.0809499,0.00011095,2]
[352317014,1739040638954,-926.69,0.00011095,2]